[Event "Rapid Tournament (RAP)"]
[Site "Biel, Switzerland"]
[Date "2026.07.12"]
[Round "1.28"]
[White "Hardt, Winfried"]
[Black "Fernandes Barbosa Dos Santos, Gabriel"]
[Result "0-1"]
[TimeControl "15 + 5"]
[WhiteTitle "-"]
[BlackTitle "-"]
[WhiteFideId "1309293"]
[BlackFideId "1354388"]
[WhiteElo "1738"]
[BlackElo "2199"]

1. e4 {[%clk 00:15:04]} {[%emt 00:00:06]} e5 {[%clk 00:15:08]} {[%emt
00:00:02]} 2. Nf3 {[%clk 00:15:07]} {[%emt 00:00:03]} Nc6 {[%clk 00:15:11]}
{[%emt 00:00:02]} 3. d4 {[%clk 00:15:10]} {[%emt 00:00:02]} exd4 {[%clk
00:15:12]} {[%emt 00:00:04]} 4. Nxd4 {[%clk 00:15:12]} {[%emt 00:00:02]} Qf6
{[%clk 00:15:11]} {[%emt 00:00:06]} 5. c3 {[%clk 00:15:01]} {[%emt 00:00:16]}
Bc5 {[%clk 00:15:00]} {[%emt 00:00:16]} 6. Be3 {[%clk 00:15:02]} {[%emt
00:00:05]} Qg6 {[%clk 00:14:22]} {[%emt 00:00:43]} 7. Nd2 {[%clk 00:14:11]}
{[%emt 00:00:55]} Nge7 {[%clk 00:14:20]} {[%emt 00:00:07]} 8. Qe2 {[%clk
00:13:44]} {[%emt 00:00:32]} O-O {[%emt 00:00:37]} 9. O-O-O {[%clk 00:13:36]}
{[%emt 00:00:01]} d5 {[%clk 00:11:56]} {[%emt 00:02:09]} 10. Nxc6 {[%clk
00:11:51]} {[%emt 00:01:50]} Qxc6 {[%clk 00:11:54]} {[%emt 00:00:07]} 11. Bxc5
{[%clk 00:11:07]} {[%emt 00:00:50]} Qxc5 {[%clk 00:11:57]} {[%emt 00:00:02]} 12.
Kb1 {[%clk 00:10:58]} {[%emt 00:00:14]} dxe4 {[%clk 00:09:31]} {[%emt
00:02:31]} 13. Nxe4 {[%clk 00:11:01]} {[%emt 00:00:02]} Bf5 {[%clk 00:09:29]}
{[%emt 00:00:06]} 14. Ka1 {[%clk 00:10:56]} {[%emt 00:00:11]} Qc6 {[%clk
00:09:06]} {[%emt 00:00:27]} 15. Ng3 {[%clk 00:10:15]} {[%emt 00:00:46]} Be6
{[%clk 00:08:57]} {[%emt 00:00:14]} 16. Qc2 {[%clk 00:08:56]} {[%emt 00:01:25]}
Rfd8 {[%clk 00:08:16]} {[%emt 00:00:46]} 17. Bd3 {[%clk 00:08:40]} {[%emt
00:00:20]} h6 {[%clk 00:07:31]} {[%emt 00:00:50]} 18. f3 {[%clk 00:08:30]}
{[%emt 00:00:16]} Nd5 {[%clk 00:06:24]} {[%emt 00:01:12]} 19. Ne2 {[%clk
00:07:01]} {[%emt 00:01:34]} Ne3 {[%clk 00:06:13]} {[%emt 00:00:16]} 20. Qc1
{[%clk 00:06:45]} {[%emt 00:00:21]} Nxd1 {[%clk 00:06:02]} {[%emt 00:00:15]} 21.
Rxd1 {[%clk 00:06:46]} {[%emt 00:00:04]} Rxd3 {[%clk 00:05:11]} {[%emt
00:00:57]} 22. Rxd3 {[%clk 00:06:40]} {[%emt 00:00:11]} Qc4 {[%clk 00:05:14]}
{[%emt 00:00:01]} 23. Qb1 {[%clk 00:06:01]} {[%emt 00:00:44]} Bf5 {[%clk
00:05:18]} {[%emt 00:00:01]} 24. Nc1 {[%clk 00:05:21]} {[%emt 00:00:45]} Bxd3
{[%clk 00:05:16]} {[%emt 00:00:08]} 25. Nxd3 {[%clk 00:05:11]} {[%emt
00:00:15]} Rd8 {[%clk 00:05:16]} {[%emt 00:00:05]} 26. Ne5 {[%clk 00:03:50]}
{[%emt 00:01:26]} Qe2 {[%clk 00:05:11]} {[%emt 00:00:09]} 0-1

[Event "Rapid Tournament (RAP)"]
[Site "Biel, Switzerland"]
[Date "2026.07.12"]
[Round "1.30"]
[White "Zumbrunn, Simon"]
[Black "Kukushkin, Ivan"]
[Result "0-1"]
[TimeControl "15 + 5"]
[WhiteTitle "-"]
[BlackTitle "-"]
[WhiteFideId "1364146"]
[BlackFideId "11634103"]
[WhiteElo "1727"]
[BlackElo "2186"]

1. e4 {[%clk 00:15:08]} c5 {[%clk 00:15:09]} {[%emt 00:00:01]} 2. d4 {[%clk
00:15:03]} {[%emt 00:00:10]} cxd4 {[%clk 00:15:13]} {[%emt 00:00:02]} 3. c3
{[%clk 00:15:07]} {[%emt 00:00:01]} dxc3 {[%clk 00:15:17]} 4. Nxc3 {[%clk
00:15:10]} {[%emt 00:00:02]} Nc6 {[%clk 00:15:16]} {[%emt 00:00:05]} 5. Nf3
{[%clk 00:15:13]} {[%emt 00:00:02]} a6 {[%clk 00:15:19]} {[%emt 00:00:02]} 6.
Bc4 {[%clk 00:15:08]} {[%emt 00:00:10]} e6 {[%clk 00:15:17]} {[%emt 00:00:07]}
7. O-O {[%clk 00:15:06]} {[%emt 00:00:06]} d6 {[%clk 00:15:17]} {[%emt
00:00:06]} 8. Qe2 {[%clk 00:14:53]} {[%emt 00:00:17]} b5 {[%clk 00:14:25]}
{[%emt 00:00:58]} 9. Bb3 {[%clk 00:14:21]} {[%emt 00:00:37]} Bb7 {[%clk
00:13:46]} {[%emt 00:00:44]} 10. Rd1 {[%clk 00:13:38]} {[%emt 00:00:46]} b4
{[%clk 00:13:26]} {[%emt 00:00:27]} 11. Na4 {[%clk 00:12:39]} {[%emt 00:01:04]}
Qa5 {[%clk 00:12:42]} {[%emt 00:00:49]} 12. Be3 {[%clk 00:10:42]} {[%emt
00:02:01]} Nf6 {[%clk 00:10:51]} {[%emt 00:01:56]} 13. Nb6 {[%clk 00:08:33]}
{[%emt 00:02:15]} Rd8 {[%clk 00:10:40]} {[%emt 00:00:15]} 14. Nc4 {[%clk
00:08:14]} {[%emt 00:00:24]} Qb5 {[%clk 00:10:35]} {[%emt 00:00:10]} 15. Bf4
{[%clk 00:07:34]} {[%emt 00:00:45]} Be7 {[%clk 00:09:54]} {[%emt 00:00:46]} 16.
Qc2 {[%clk 00:06:07]} {[%emt 00:01:32]} O-O {[%clk 00:07:19]} {[%emt 00:02:40]}
17. Bxd6 {[%clk 00:05:52]} {[%emt 00:00:20]} Qh5 {[%clk 00:06:49]} {[%emt
00:00:35]} 18. Bg3 {[%clk 00:05:12]} {[%emt 00:00:45]} Na7 {[%clk 00:06:24]}
{[%emt 00:00:31]} 19. Nfd2 {[%clk 00:03:53]} {[%emt 00:01:23]} Nb5 {[%clk
00:06:19]} {[%emt 00:00:10]} 20. f3 {[%clk 00:03:33]} {[%emt 00:00:25]} Nd4
{[%clk 00:06:20]} {[%emt 00:00:04]} 21. Qd3 {[%clk 00:03:31]} {[%emt 00:00:07]}
Bc5 {[%clk 00:06:24]} {[%emt 00:00:01]} 22. Kh1 {[%clk 00:03:23]} {[%emt
00:00:12]} Nf5 {[%clk 00:06:27]} {[%emt 00:00:03]} 23. Bd6 {[%clk 00:02:42]}
{[%emt 00:00:47]} Rxd6 {[%clk 00:06:26]} {[%emt 00:00:06]} 0-1

[Event "Rapid Tournament (RAP)"]
[Site "Biel, Switzerland"]
[Date "2026.07.12"]
[Round "1.31"]
[White "Gluckman, David"]
[Black "Chu, Wa Ching David"]
[Result "0-1"]
[TimeControl "15 + 5"]
[WhiteTitle "-"]
[BlackTitle "-"]
[WhiteFideId "14300010"]
[BlackFideId "6013180"]
[WhiteElo "2161"]
[BlackElo "1723"]

1. d4 {[%clk 00:15:08]} d5 {[%clk 00:15:09]} {[%emt 00:00:02]} 2. Nf3 {[%clk
00:15:12]} {[%emt 00:00:02]} Nf6 {[%clk 00:15:11]} {[%emt 00:00:02]} 3. c4
{[%clk 00:15:14]} {[%emt 00:00:04]} e6 {[%clk 00:15:15]} {[%emt 00:00:01]} 4.
g3 {[%clk 00:15:18]} {[%emt 00:00:01]} Be7 {[%clk 00:15:19]} 5. Bg2 {[%clk
00:15:22]} {[%emt 00:00:01]} O-O {[%clk 00:15:21]} {[%emt 00:00:02]} 6. O-O
{[%clk 00:15:26]} {[%emt 00:00:01]} dxc4 {[%clk 00:15:25]} {[%emt 00:00:02]} 7.
Qa4 {[%clk 00:15:08]} {[%emt 00:00:23]} c6 {[%clk 00:15:26]} {[%emt 00:00:04]}
8. Qxc4 {[%clk 00:15:12]} {[%emt 00:00:01]} b5 {[%clk 00:15:30]} {[%emt
00:00:02]} 9. Qc2 {[%clk 00:15:14]} {[%emt 00:00:02]} Bb7 {[%clk 00:15:34]}
{[%emt 00:00:01]} 10. Nbd2 {[%clk 00:15:07]} {[%emt 00:00:12]} Nbd7 {[%clk
00:15:33]} {[%emt 00:00:05]} 11. Nb3 {[%clk 00:15:11]} {[%emt 00:00:02]} Qb6
{[%clk 00:15:21]} {[%emt 00:00:17]} 12. Bf4 {[%emt 00:00:26]} Rac8 {[%clk
00:15:11]} 13. Rac1 {[%clk 00:14:52]} {[%emt 00:00:17]} c5 {[%clk 00:15:05]}
{[%emt 00:00:12]} 14. dxc5 {[%clk 00:14:49]} {[%emt 00:00:08]} Nxc5 {[%clk
00:15:02]} {[%emt 00:00:07]} 15. Nxc5 {[%clk 00:14:47]} {[%emt 00:00:08]} Bxc5
{[%clk 00:15:00]} {[%emt 00:00:07]} 16. Qb1 {[%clk 00:14:15]} {[%emt 00:00:37]}
Be4 {[%clk 00:14:41]} {[%emt 00:00:23]} 17. Qa1 {[%clk 00:14:20]} Rfd8 {[%clk
00:14:44]} {[%emt 00:00:03]} 18. e3 {[%clk 00:14:01]} {[%emt 00:00:24]} Qb7
{[%clk 00:14:16]} {[%emt 00:00:34]} 19. Ne1 {[%clk 00:13:31]} {[%emt 00:00:34]}
Bb4 {[%clk 00:13:33]} {[%emt 00:00:47]} 20. Bxe4 {[%clk 00:11:15]} {[%emt
00:02:22]} Nxe4 {[%clk 00:13:23]} {[%emt 00:00:15]} 21. Nf3 {[%clk 00:08:13]}
{[%emt 00:03:07]} h6 {[%clk 00:12:17]} {[%emt 00:01:11]} 22. Rxc8 {[%clk
00:07:21]} {[%emt 00:00:57]} Rxc8 {[%clk 00:12:12]} {[%emt 00:00:10]} 23. Be5
{[%clk 00:05:57]} {[%emt 00:01:29]} f6 {[%clk 00:11:48]} {[%emt 00:00:29]} 24.
a3 {[%clk 00:05:49]} {[%emt 00:00:13]} Be7 {[%clk 00:10:22]} {[%emt 00:01:31]}
25. Qa2 {[%emt 00:03:00]} Nc5 {[%clk 00:07:54]} 26. b4 {[%clk 00:05:07]} {[%emt
00:00:24]} Kf7 {[%clk 00:06:18]} {[%emt 00:01:41]} 27. bxc5 {[%clk 00:04:14]}
{[%emt 00:00:58]} Qxf3 {[%clk 00:06:09]} {[%emt 00:00:14]} 28. Bd6 {[%clk
00:04:17]} {[%emt 00:00:02]} Bxd6 {[%clk 00:05:48]} {[%emt 00:00:26]} 29. cxd6
{[%clk 00:04:21]} {[%emt 00:00:02]} Qd5 {[%clk 00:05:40]} {[%emt 00:00:12]} 30.
Qxd5 {[%clk 00:03:35]} {[%emt 00:00:51]} exd5 {[%clk 00:05:44]} {[%emt
00:00:04]} 31. Rb1 {[%clk 00:02:12]} {[%emt 00:01:25]} Rc5 {[%clk 00:02:20]}
{[%emt 00:03:28]} 32. a4 {[%clk 00:02:07]} {[%emt 00:00:10]} a6 {[%clk
00:01:52]} {[%emt 00:00:33]} 33. axb5 {[%clk 00:02:12]} {[%emt 00:00:01]} axb5
{[%clk 00:01:57]} 34. Ra1 {[%clk 00:02:14]} {[%emt 00:00:03]} Ke6 {[%clk
00:01:50]} {[%emt 00:00:11]} 35. Ra7 {[%clk 00:02:14]} {[%emt 00:00:05]} Kxd6
{[%clk 00:01:28]} {[%emt 00:00:26]} 36. Rxg7 {[%clk 00:02:18]} {[%emt
00:00:01]} b4 {[%clk 00:01:29]} {[%emt 00:00:05]} 37. Rb7 {[%clk 00:02:17]}
{[%emt 00:00:07]} Rc4 {[%clk 00:01:31]} {[%emt 00:00:02]} 38. Rb6+ {[%clk
00:02:20]} {[%emt 00:00:03]} Kc5 {[%clk 00:01:16]} {[%emt 00:00:20]} 39. Rxf6
{[%clk 00:02:23]} {[%emt 00:00:02]} b3 {[%clk 00:01:19]} {[%emt 00:00:02]} 40.
Rf8 {[%clk 00:02:17]} {[%emt 00:00:11]} b2 {[%clk 00:00:47]} {[%emt 00:00:37]}
41. Rc8+ {[%clk 00:02:20]} {[%emt 00:00:01]} Kb4 {[%clk 00:00:51]} 42. Rb8+
{[%clk 00:02:24]} {[%emt 00:00:02]} Kc3 {[%clk 00:00:54]} 43. Rxb2 {[%clk
00:02:13]} {[%emt 00:00:15]} Kxb2 {[%clk 00:00:58]} {[%emt 00:00:02]} 44. Kg2
{[%clk 00:02:17]} {[%emt 00:00:01]} Kc3 {[%clk 00:01:00]} {[%emt 00:00:03]} 45.
Kf3 {[%clk 00:02:19]} {[%emt 00:00:03]} Kd3 {[%clk 00:00:50]} {[%emt 00:00:15]}
46. g4 {[%clk 00:02:22]} {[%emt 00:00:02]} Re4 {[%clk 00:00:51]} {[%emt
00:00:04]} 47. h4 {[%clk 00:02:26]} {[%emt 00:00:01]} d4 {[%clk 00:00:43]}
{[%emt 00:00:13]} 48. exd4 {[%clk 00:02:28]} {[%emt 00:00:03]} Kxd4 {[%clk
00:00:46]} {[%emt 00:00:01]} 49. g5 {[%clk 00:02:33]} hxg5 {[%clk 00:00:45]}
{[%emt 00:00:07]} 50. hxg5 {[%clk 00:02:37]} Ke5 {[%clk 00:00:45]} {[%emt
00:00:05]} 0-1

[Event "Rapid Tournament (RAP)"]
[Site "Biel, Switzerland"]
[Date "2026.07.12"]
[Round "1.32"]
[White "Boner, Timm"]
[Black "Harish, Neeraj"]
[Result "0-1"]
[TimeControl "15 + 5"]
[WhiteTitle "-"]
[BlackTitle "-"]
[WhiteFideId "1330039"]
[BlackFideId "30958130"]
[WhiteElo "1720"]
[BlackElo "2140"]

1. e4 {[%clk 00:15:07]} {[%emt 00:00:02]} e5 {[%clk 00:15:08]} {[%emt
00:00:03]} 2. Nf3 {[%clk 00:15:10]} {[%emt 00:00:02]} Nc6 {[%clk 00:15:11]}
{[%emt 00:00:02]} 3. Bc4 {[%clk 00:15:13]} {[%emt 00:00:02]} Nf6 {[%clk
00:15:13]} {[%emt 00:00:02]} 4. Nc3 {[%clk 00:15:15]} {[%emt 00:00:03]} Nxe4
{[%clk 00:15:15]} {[%emt 00:00:04]} 5. Nxe4 {[%clk 00:15:10]} {[%emt 00:00:10]}
d5 {[%clk 00:15:18]} {[%emt 00:00:01]} 6. Bd3 {[%clk 00:15:06]} {[%emt
00:00:10]} dxe4 {[%clk 00:15:20]} {[%emt 00:00:03]} 7. Bxe4 {[%clk 00:15:09]}
{[%emt 00:00:02]} Nb4 {[%clk 00:14:31]} {[%emt 00:00:54]} 8. a3 {[%clk
00:14:59]} {[%emt 00:00:16]} f5 {[%clk 00:13:38]} {[%emt 00:00:58]} 9. Bxf5
{[%clk 00:14:54]} {[%emt 00:00:09]} Bxf5 {[%clk 00:13:39]} {[%emt 00:00:04]} 10.
axb4 {[%clk 00:14:57]} {[%emt 00:00:02]} e4 {[%clk 00:12:58]} {[%emt 00:00:46]}
11. Qe2 {[%clk 00:15:00]} {[%emt 00:00:03]} Be7 {[%clk 00:12:36]} {[%emt
00:00:27]} 12. Ne5 {[%clk 00:14:29]} {[%emt 00:00:36]} Qd5 {[%clk 00:11:40]}
{[%emt 00:01:01]} 13. f4 {[%clk 00:13:19]} {[%emt 00:01:14]} exf3 {[%clk
00:11:40]} {[%emt 00:00:05]} 14. Nxf3 {[%clk 00:13:16]} {[%emt 00:00:08]} O-O
{[%clk 00:11:22]} {[%emt 00:00:23]} 15. Ra5 {[%clk 00:13:18]} {[%emt 00:00:03]}
Qd7 {[%clk 00:10:31]} {[%emt 00:00:56]} 16. O-O {[%clk 00:13:15]} {[%emt
00:00:07]} Kh8 {[%clk 00:09:48]} {[%emt 00:00:49]} 17. Kh1 {[%clk 00:13:08]}
{[%emt 00:00:12]} Bxb4 {[%clk 00:09:41]} {[%emt 00:00:12]} 18. Rb5 {[%clk
00:12:50]} {[%emt 00:00:24]} Bd6 {[%clk 00:09:09]} {[%emt 00:00:37]} 19. Nd4
{[%clk 00:12:27]} {[%emt 00:00:27]} Rae8 {[%clk 00:08:26]} {[%emt 00:00:48]} 20.
Qc4 {[%clk 00:12:08]} {[%emt 00:00:24]} Be6 {[%clk 00:07:28]} {[%emt 00:01:03]}
21. Rxf8+ {[%clk 00:12:07]} {[%emt 00:00:05]} Rxf8 {[%clk 00:07:24]} {[%emt
00:00:10]} 22. Nxe6 {[%clk 00:12:05]} {[%emt 00:00:06]} Qxe6 {[%clk 00:07:27]}
{[%emt 00:00:03]} 0-1

[Event "Rapid Tournament (RAP)"]
[Site "Biel, Switzerland"]
[Date "2026.07.12"]
[Round "1.33"]
[White "Erne, Raphael"]
[Black "Huettinger, Jonathan"]
[Result "1-0"]
[TimeControl "15 + 5"]
[WhiteTitle "-"]
[BlackTitle "-"]
[WhiteFideId "1341928"]
[BlackFideId "1366750"]
[WhiteElo "2122"]
[BlackElo "1704"]

1. c4 {[%clk 00:15:06]} {[%emt 00:00:03]} Nf6 {[%clk 00:14:52]} {[%emt
00:00:17]} 2. g3 {[%clk 00:15:05]} {[%emt 00:00:06]} g6 {[%clk 00:14:54]}
{[%emt 00:00:04]} 3. Bg2 {[%clk 00:15:06]} {[%emt 00:00:05]} Bg7 {[%clk
00:14:55]} {[%emt 00:00:03]} 4. Nc3 {[%clk 00:15:07]} {[%emt 00:00:04]} c6
{[%clk 00:14:33]} {[%emt 00:00:26]} 5. Nf3 {[%clk 00:15:00]} {[%emt 00:00:13]}
O-O {[%clk 00:14:32]} {[%emt 00:00:06]} 6. O-O {[%clk 00:14:57]} {[%emt
00:00:08]} d5 {[%clk 00:13:57]} {[%emt 00:00:40]} 7. cxd5 {[%clk 00:14:53]}
{[%emt 00:00:09]} cxd5 {[%clk 00:13:19]} {[%emt 00:00:43]} 8. d4 {[%clk
00:14:53]} {[%emt 00:00:05]} Nc6 {[%clk 00:13:20]} {[%emt 00:00:04]} 9. Ne5
{[%clk 00:14:54]} {[%emt 00:00:04]} Bf5 {[%clk 00:12:51]} {[%emt 00:00:35]} 10.
Nxc6 {[%clk 00:14:53]} {[%emt 00:00:05]} bxc6 {[%clk 00:12:53]} {[%emt
00:00:03]} 11. Bf4 {[%clk 00:14:55]} {[%emt 00:00:03]} Re8 {[%clk 00:12:33]}
{[%emt 00:00:26]} 12. Rc1 {[%clk 00:14:13]} {[%emt 00:00:47]} Nh5 {[%clk
00:11:46]} {[%emt 00:00:51]} 13. Be3 {[%clk 00:13:26]} {[%emt 00:00:52]} e5
{[%clk 00:11:19]} {[%emt 00:00:32]} 14. Na4 {[%clk 00:12:09]} {[%emt 00:01:23]}
Qd6 {[%clk 00:10:08]} {[%emt 00:01:15]} 15. Re1 {[%clk 00:09:03]} {[%emt
00:03:11]} exd4 {[%clk 00:08:26]} {[%emt 00:01:48]} 16. Bxd4 {[%clk 00:08:59]}
{[%emt 00:00:08]} Bxd4 {[%clk 00:07:12]} {[%emt 00:01:19]} 17. Qxd4 {[%clk
00:09:02]} {[%emt 00:00:02]} Be4 {[%clk 00:07:06]} {[%emt 00:00:11]} 18. Qc5
{[%clk 00:03:44]} {[%emt 00:05:23]} Qxc5 {[%clk 00:06:19]} {[%emt 00:00:52]} 19.
Nxc5 {[%clk 00:03:27]} {[%emt 00:00:23]} Bxg2 {[%clk 00:06:19]} {[%emt
00:00:05]} 20. Kxg2 {[%clk 00:03:30]} {[%emt 00:00:01]} Nf6 {[%clk 00:06:14]}
{[%emt 00:00:10]} 21. Rc2 {[%clk 00:03:14]} {[%emt 00:00:21]} Rab8 {[%clk
00:05:35]} {[%emt 00:00:44]} 22. Rec1 {[%clk 00:02:54]} {[%emt 00:00:25]} Rb6
{[%clk 00:04:32]} {[%emt 00:01:08]} 23. e3 {[%clk 00:02:38]} {[%emt 00:00:21]}
Rc8 {[%clk 00:03:55]} {[%emt 00:00:42]} 24. b3 {[%clk 00:01:50]} {[%emt
00:00:54]} Rb5 {[%clk 00:03:11]} {[%emt 00:00:49]} 25. Na4 {[%clk 00:01:36]}
{[%emt 00:00:18]} d4 {[%clk 00:01:21]} {[%emt 00:01:55]} 26. exd4 {[%clk
00:01:32]} {[%emt 00:00:09]} Rd5 {[%clk 00:01:24]} {[%emt 00:00:02]} 27. Rxc6
{[%clk 00:01:23]} {[%emt 00:00:14]} Rxc6 {[%clk 00:01:19]} {[%emt 00:00:11]} 28.
Rxc6 {[%clk 00:01:27]} Ne4 {[%clk 00:01:06]} {[%emt 00:00:17]} 29. Rc4 {[%clk
00:00:19]} {[%emt 00:01:12]} Kg7 {[%clk 00:00:32]} {[%emt 00:00:40]} 30. f3
{[%clk 00:00:16]} {[%emt 00:00:08]} Nd6 {[%clk 00:00:34]} {[%emt 00:00:03]} 31.
Rc7 {[%clk 00:00:09]} {[%emt 00:00:13]} a5 {[%clk 00:00:22]} {[%emt 00:00:17]}
32. Rc5 {[%clk 00:00:10]} {[%emt 00:00:03]} Rxd4 {[%clk 00:00:23]} {[%emt
00:00:04]} 33. Rxa5 {[%clk 00:00:13]} {[%emt 00:00:02]} Rd2+ {[%clk 00:00:23]}
{[%emt 00:00:05]} 34. Kh3 {[%clk 00:00:17]} {[%emt 00:00:01]} Rxa2 {[%clk
00:00:23]} {[%emt 00:00:06]} 35. Ra6 {[%clk 00:00:08]} {[%emt 00:00:13]} Nf5
{[%clk 00:00:27]} {[%emt 00:00:02]} 36. Rb6 {[%clk 00:00:09]} {[%emt 00:00:05]}
h5 {[%clk 00:00:24]} {[%emt 00:00:07]} 37. g4 {[%clk 00:00:08]} {[%emt
00:00:05]} hxg4+ {[%clk 00:00:19]} {[%emt 00:00:11]} 38. fxg4 {[%clk 00:00:11]}
{[%emt 00:00:02]} Nd4 {[%clk 00:00:19]} {[%emt 00:00:05]} 39. Nc5 {[%clk
00:00:10]} {[%emt 00:00:05]} Ra5 {[%clk 00:00:14]} {[%emt 00:00:10]} 40. Ne4
{[%clk 00:00:11]} {[%emt 00:00:04]} Ra3 {[%clk 00:00:17]} {[%emt 00:00:02]} 41.
Nc5 {[%clk 00:00:10]} {[%emt 00:00:06]} Ra5 {[%clk 00:00:21]} {[%emt 00:00:02]}
42. b4 {[%clk 00:00:12]} {[%emt 00:00:03]} Ra3+ {[%clk 00:00:24]} {[%emt
00:00:01]} 43. Kg2 {[%clk 00:00:15]} {[%emt 00:00:03]} Ra2+ {[%clk 00:00:18]}
{[%emt 00:00:11]} 44. Kg3 {[%clk 00:00:17]} {[%emt 00:00:02]} Ra3+ {[%clk
00:00:21]} {[%emt 00:00:03]} 45. Kf4 {[%clk 00:00:16]} {[%emt 00:00:05]} Ne2+
{[%clk 00:00:16]} {[%emt 00:00:10]} 46. Ke4 {[%clk 00:00:16]} {[%emt 00:00:05]}
g5 {[%clk 00:00:17]} {[%emt 00:00:05]} 47. Nd3 {[%clk 00:00:11]} {[%emt
00:00:10]} Nc3+ {[%clk 00:00:20]} {[%emt 00:00:02]} 48. Kd4 {[%clk 00:00:13]}
{[%emt 00:00:03]} Na4 {[%clk 00:00:23]} {[%emt 00:00:02]} 49. Ra6 {[%clk
00:00:07]} {[%emt 00:00:11]} Ra2 {[%clk 00:00:11]} {[%emt 00:00:17]} 50. b5
{[%clk 00:00:08]} {[%emt 00:00:04]} Ra3 {[%clk 00:00:12]} {[%emt 00:00:04]} 51.
b6 {[%clk 00:00:08]} {[%emt 00:00:04]} Rxd3+ {[%clk 00:00:15]} {[%emt
00:00:02]} 52. Kc4 {[%clk 00:00:09]} {[%emt 00:00:04]} Rd1 {[%clk 00:00:12]}
{[%emt 00:00:08]} 53. Rxa4 {[%clk 00:00:12]} {[%emt 00:00:02]} Rc1+ {[%clk
00:00:14]} {[%emt 00:00:02]} 54. Kd5 {[%clk 00:00:14]} {[%emt 00:00:03]} Rb1
{[%clk 00:00:18]} {[%emt 00:00:02]} 55. Kc6 {[%clk 00:00:18]} {[%emt 00:00:02]}
Kg6 {[%clk 00:00:20]} {[%emt 00:00:02]} 56. Ra5 {[%clk 00:00:17]} {[%emt
00:00:05]} f5 {[%clk 00:00:19]} {[%emt 00:00:06]} 57. gxf5 {[%clk 00:00:21]}
{[%emt 00:00:02]} Kf6 {[%clk 00:00:21]} {[%emt 00:00:03]} 58. Rb5 {[%clk
00:00:24]} {[%emt 00:00:02]} Ra1 {[%clk 00:00:22]} {[%emt 00:00:03]} 59. b7
{[%clk 00:00:28]} {[%emt 00:00:02]} Rc1+ {[%clk 00:00:26]} 60. Kb6 {[%clk
00:00:32]} {[%emt 00:00:01]} Rd1 {[%clk 00:00:29]} {[%emt 00:00:03]} 61. b8=Q
{[%clk 00:00:34]} {[%emt 00:00:02]} 1-0

[Event "Rapid Tournament (RAP)"]
[Site "Biel, Switzerland"]
[Date "2026.07.12"]
[Round "1.34"]
[White "Surdez, Patrick"]
[Black "Menzi, Jonas"]
[Result "0-1"]
[TimeControl "15 + 5"]
[WhiteTitle "-"]
[BlackTitle "-"]
[WhiteFideId "1380206"]
[BlackFideId "1345133"]
[WhiteElo "1695"]
[BlackElo "2114"]

1. e4 {[%emt 00:03:15]} e5 {[%emt 00:00:09]} 2. Nf3 {[%emt 00:00:06]} Nc6
{[%emt 00:00:02]} 3. Bb5 {[%emt 00:00:09]} a6 {[%emt 00:00:02]} 4. Ba4 {[%emt
00:00:04]} Nf6 {[%emt 00:00:01]} 5. O-O {[%emt 00:00:08]} Nxe4 {[%emt
00:00:02]} 6. Re1 {[%emt 00:00:12]} Nc5 {[%emt 00:00:01]} 7. Bxc6 {[%emt
00:00:23]} dxc6 {[%emt 00:00:01]} 8. Nxe5 {[%emt 00:02:22]} Be7 {[%emt
00:00:02]} 9. d4 {[%emt 00:02:42]} Ne6 10. c3 {[%emt 00:00:08]} O-O {[%emt
00:00:02]} 11. Be3 {[%emt 00:00:46]} f6 {[%emt 00:02:43]} 12. Nf3 {[%emt
00:01:05]} Re8 {[%emt 00:00:24]} 13. Nbd2 {[%emt 00:00:34]} Bf8 {[%emt
00:00:45]} 14. Nf1 {[%emt 00:00:27]} b6 {[%emt 00:00:36]} 15. Ng3 {[%emt
00:00:28]} Bb7 {[%emt 00:00:41]} 16. Qb3 {[%emt 00:01:09]} Qd7 {[%emt
00:00:33]} 17. Rad1 {[%emt 00:00:13]} Qf7 {[%emt 00:00:14]} 18. h3 {[%emt
00:02:06]} Rad8 {[%emt 00:00:09]} 19. a4 {[%emt 00:00:55]} a5 {[%emt 00:00:30]}
20. Bc1 {[%emt 00:00:14]} Ng5 {[%emt 00:03:07]} 21. Qxf7+ {[%emt 00:00:14]}
Nxf7 {[%emt 00:00:02]} 22. Nf5 {[%emt 00:01:14]} Nd6 {[%emt 00:00:19]} 23. N3h4
{[%emt 00:00:19]} Kf7 {[%emt 00:01:08]} 24. Bf4 {[%emt 00:00:33]} g5 {[%emt
00:01:55]} 25. Bxd6 {[%emt 00:00:06]} cxd6 {[%emt 00:00:02]} 26. Rxe8 {[%emt
00:00:10]} Rxe8 {[%emt 00:00:03]} 27. Nf3 {[%emt 00:00:04]} Bc8 {[%emt
00:00:11]} 28. Ne3 {[%emt 00:00:05]} d5 {[%emt 00:00:12]} 29. Kf1 {[%emt
00:00:02]} h5 {[%emt 00:00:22]} 30. g4 {[%emt 00:00:43]} Re4 31. gxh5 {[%emt
00:00:15]} Bxh3+ {[%emt 00:00:03]} 32. Ke2 {[%emt 00:00:04]} Bg4 {[%emt
00:01:04]} 33. Rg1 {[%emt 00:00:03]} Bxh5 {[%emt 00:00:07]} 34. Rg3 {[%emt
00:00:03]} Bd6 {[%emt 00:00:11]} 35. Rh3 Bg4 {[%emt 00:00:46]} 36. Rh7+ {[%emt
00:00:11]} Kg6 {[%emt 00:00:02]} 0-1